[Event "*** Titled Tuesday Blitz"]
[Site "Chess.com"]
[Date "2019.01.01"]
[Round "1"]
[White "champ2005"]
[Black "ASVZ"]
[Result "1-0"]
[WhiteElo "2626"]
[BlackElo "2270"]
[TimeControl "180+2"]
[EndTime "13:09:37 PST"]
[Termination "champ2005 won by checkmate"]

1. b3 {[%clk 0:03:01]} 1... b6 {[%clk 0:03:00.5]} 2. Bb2 {[%clk 0:03:00.3]} 2...
Bb7 {[%clk 0:03:02.2]} 3. Nf3 {[%clk 0:03:01.3]} 3... e6 {[%clk 0:03:03.6]} 4.
g3 {[%clk 0:03:02.4]} 4... f5 {[%clk 0:03:04.9]} 5. Bg2 {[%clk 0:03:03.3]} 5...
Nf6 {[%clk 0:03:06.5]} 6. O-O {[%clk 0:03:04.4]} 6... g6 {[%clk 0:03:08]} 7. d3
{[%clk 0:03:01.4]} 7... Bg7 {[%clk 0:03:09.5]} 8. c4 {[%clk 0:03:02.2]} 8... O-O
{[%clk 0:03:10.4]} 9. Nbd2 {[%clk 0:03:03.2]} 9... c5 {[%clk 0:03:11.5]} 10. Re1
{[%clk 0:03:03.4]} 10... d5 {[%clk 0:03:11.7]} 11. Qc2 {[%clk 0:02:56.3]} 11...
Qd7 {[%clk 0:03:12.4]} 12. Ne5 {[%clk 0:02:56.9]} 12... Qc7 {[%clk 0:03:13.5]}
13. Ndf3 {[%clk 0:02:56.8]} 13... d4 {[%clk 0:03:14.1]} 14. e3 {[%clk
0:02:52.7]} 14... dxe3 {[%clk 0:02:51.2]} 15. Rxe3 {[%clk 0:02:53.5]} 15... Re8
{[%clk 0:02:23.8]} 16. Rae1 {[%clk 0:02:52.9]} 16... Nc6 {[%clk 0:02:20.8]} 17.
Nxc6 {[%clk 0:02:51.7]} 17... Qxc6 {[%clk 0:02:22.7]} 18. Nh4 {[%clk 0:02:52.6]}
18... Qd7 {[%clk 0:02:21.2]} 19. Bxb7 {[%clk 0:02:52.9]} 19... Qxb7 {[%clk
0:02:23.1]} 20. Rxe6 {[%clk 0:02:51.3]} 20... Kf7 {[%clk 0:02:10.9]} 21. Rxe8
{[%clk 0:02:43.5]} 21... Rxe8 {[%clk 0:02:11.8]} 22. Rxe8 {[%clk 0:02:44.4]}
22... Nxe8 {[%clk 0:02:13.7]} 23. Bxg7 {[%clk 0:02:44]} 23... Nxg7 {[%clk
0:02:15.6]} 24. Qe2 {[%clk 0:02:41.6]} 24... Ne6 {[%clk 0:02:16.7]} 25. Nf3
{[%clk 0:02:41.7]} 25... g5 {[%clk 0:01:30.8]} 26. h3 {[%clk 0:01:56.6]} 26...
h5 {[%clk 0:01:31.3]} 27. Qe3 {[%clk 0:01:08.9]} 27... g4 {[%clk 0:01:22.3]} 28.
Ng5+ {[%clk 0:01:08.1]} 28... Nxg5 {[%clk 0:01:23.7]} 29. Qxg5 {[%clk 0:01:10]}
29... Qf3 {[%clk 0:01:07.6]} 30. Qxh5+ {[%clk 0:01:09.3]} 30... Kf6 {[%clk
0:00:59.1]} 31. hxg4 {[%clk 0:01:06.1]} 31... Qd1+ {[%clk 0:00:53.5]} 32. Kg2
{[%clk 0:01:05.2]} 32... fxg4 {[%clk 0:00:55.4]} 33. Qh6+ {[%clk 0:01:01.6]}
33... Ke5 {[%clk 0:00:56.8]} 34. Qe3+ {[%clk 0:01:00.7]} 34... Kf5 {[%clk
0:00:56.8]} 35. Qe4+ {[%clk 0:01:00.2]} 35... Kg5 {[%clk 0:00:56.6]} 36. Qe7+
{[%clk 0:00:50.7]} 36... Kf5 {[%clk 0:00:57.2]} 37. Qxa7 {[%clk 0:00:48.8]}
37... Qf3+ {[%clk 0:00:57.7]} 38. Kg1 {[%clk 0:00:49.9]} 38... Qd1+ {[%clk
0:00:58.6]} 39. Kh2 {[%clk 0:00:50.9]} 39... Qd2 {[%clk 0:00:53.1]} 40. Kg2
{[%clk 0:00:45.6]} 40... Ke5 {[%clk 0:00:46.3]} 41. Qxb6 {[%clk 0:00:40.6]}
41... Kd4 {[%clk 0:00:47.4]} 42. Qd6+ {[%clk 0:00:39.5]} 42... Kc3 {[%clk
0:00:48.5]} 43. Qxc5 {[%clk 0:00:39.6]} 43... Kb2 {[%clk 0:00:44.6]} 44. Qe3
{[%clk 0:00:37.9]} 44... Qd1 {[%clk 0:00:45.8]} 45. d4 {[%clk 0:00:38.4]} 45...
Ka3 {[%clk 0:00:46.2]} 46. d5 {[%clk 0:00:36.6]} 46... Qb1 {[%clk 0:00:45.5]}
47. Qd4 {[%clk 0:00:27.2]} 47... Qf5 {[%clk 0:00:45.8]} 48. d6 {[%clk
0:00:26.9]} 48... Qf3+ {[%clk 0:00:34.5]} 49. Kg1 {[%clk 0:00:27.9]} 49... Qe2
{[%clk 0:00:21.2]} 50. d7 {[%clk 0:00:24.7]} 50... Qe1+ {[%clk 0:00:22.5]} 51.
Kg2 {[%clk 0:00:25.8]} 51... Qe2 {[%clk 0:00:23]} 52. d8=Q {[%clk 0:00:26.5]}
52... Qf3+ {[%clk 0:00:24.9]} 53. Kg1 {[%clk 0:00:27.7]} 53... Qb7 {[%clk
0:00:20.2]} 54. Qa5# {[%clk 0:00:28.3]} 1-0

[Event "*** Titled Tuesday Blitz"]
[Site "Chess.com"]
[Date "2019.01.01"]
[Round "1"]
[White "oskariot"]
[Black "tteshan"]
[Result "1-0"]
[WhiteElo "2522"]
[BlackElo "2119"]
[TimeControl "180+2"]
[EndTime "13:09:37 PST"]
[Termination "oskariot won by resignation"]

1. c4 {[%clk 0:03:01.9]} 1... c5 {[%clk 0:02:59]} 2. g3 {[%clk 0:03:03.2]} 2...
g6 {[%clk 0:02:57.1]} 3. Bg2 {[%clk 0:03:04.7]} 3... Bg7 {[%clk 0:02:58.5]} 4.
Nc3 {[%clk 0:03:06.3]} 4... Nc6 {[%clk 0:02:59.6]} 5. e4 {[%clk 0:03:07.7]} 5...
e6 {[%clk 0:03:00.8]} 6. Nge2 {[%clk 0:03:08.8]} 6... Nge7 {[%clk 0:03:02]} 7.
O-O {[%clk 0:03:10.3]} 7... O-O {[%clk 0:03:02]} 8. d3 {[%clk 0:03:09.8]} 8...
d6 {[%clk 0:03:00.4]} 9. Be3 {[%clk 0:03:08.6]} 9... e5 {[%clk 0:03:00.4]} 10.
f4 {[%clk 0:03:06.4]} 10... f5 {[%clk 0:02:58.4]} 11. Nd5 {[%clk 0:03:00.5]}
11... Be6 {[%clk 0:02:56.4]} 12. Qd2 {[%clk 0:02:59.2]} 12... Qd7 {[%clk
0:02:51.7]} 13. Rae1 {[%clk 0:02:55.3]} 13... fxe4 {[%clk 0:02:50.6]} 14. dxe4
{[%clk 0:02:55.5]} 14... exf4 {[%clk 0:02:46.3]} 15. gxf4 {[%clk 0:02:52.8]}
15... Bh3 {[%clk 0:02:43.2]} 16. Ng3 {[%clk 0:02:52.3]} 16... Bxg2 {[%clk
0:02:42.4]} 17. Qxg2 {[%clk 0:02:53]} 17... Nd4 {[%clk 0:02:39.5]} 18. f5 {[%clk
0:02:51.6]} 18... Nxd5 {[%clk 0:02:39]} 19. cxd5 {[%clk 0:02:46.3]} 19... gxf5
{[%clk 0:02:23.7]} 20. exf5 {[%clk 0:02:19.5]} 20... Kh8 {[%clk 0:02:21.9]} 21.
Bxd4 {[%clk 0:02:07.5]} 21... Bxd4+ {[%clk 0:02:21.4]} 22. Kh1 {[%clk 0:02:09]}
22... Rae8 {[%clk 0:02:17]} 23. Re6 {[%clk 0:02:08.8]} 23... b5 {[%clk
0:02:06.4]} 24. Qh3 {[%clk 0:01:55.1]} 24... Be5 {[%clk 0:01:54]} 25. Ne4 {[%clk
0:01:40.3]} 25... Qb7 {[%clk 0:01:38.8]} 26. Rd1 {[%clk 0:01:27.1]} 26... Qg7
{[%clk 0:01:10.3]} 27. Rg1 {[%clk 0:01:20.7]} 27... Qb7 {[%clk 0:01:01.7]} 28.
Rd1 {[%clk 0:00:27.5]} 28... Qg7 {[%clk 0:01:01.3]} 29. b3 {[%clk 0:00:25.8]}
29... Rg8 {[%clk 0:00:55.6]} 30. f6 {[%clk 0:00:21]} 30... Qg6 {[%clk
0:00:50.5]} 31. Qf3 {[%clk 0:00:22.4]} 31... Bd4 {[%clk 0:00:43.6]} 32. h3
{[%clk 0:00:10.8]} 32... Ref8 {[%clk 0:00:25.1]} 33. Rf1 {[%clk 0:00:12.2]}
33... Qf7 {[%clk 0:00:12]} 34. Nxd6 {[%clk 0:00:11.9]} 34... Qd7 {[%clk
0:00:11]} 35. f7 {[%clk 0:00:11.1]} 35... Rg7 {[%clk 0:00:10.4]} 36. Qf5 {[%clk
0:00:11.6]} 36... c4 {[%clk 0:00:06.3]} 37. Re8 {[%clk 0:00:12.4]} 37... Qxd6
{[%clk 0:00:05.1]} 38. Qc8 {[%clk 0:00:10.2]} 38... Bc5 {[%clk 0:00:06.2]} 39.
bxc4 {[%clk 0:00:07.4]} 39... bxc4 {[%clk 0:00:06.4]} 40. Rxf8+ {[%clk
0:00:07.6]} 40... Qxf8 {[%clk 0:00:07.1]} 41. Qe6 {[%clk 0:00:09.5]} 41... Rg6
{[%clk 0:00:06.6]} 42. Qe5+ {[%clk 0:00:10.1]} 42... Rg7 {[%clk 0:00:07.4]} 43.
h4 {[%clk 0:00:09.6]} 43... Bd6 {[%clk 0:00:08]} 44. Qd4 {[%clk 0:00:09.9]}
44... h6 {[%clk 0:00:09.3]} 45. Qf6 {[%clk 0:00:07.4]} 45... Kh7 {[%clk
0:00:09.5]} 46. Qf5+ {[%clk 0:00:08.7]} 46... Rg6 {[%clk 0:00:10.3]} 47. h5
{[%clk 0:00:09.9]} 47... Qg7 {[%clk 0:00:04.4]} 48. Qxg6+ {[%clk 0:00:10.5]} 1-0

[Event "*** Titled Tuesday Blitz"]
[Site "Chess.com"]
[Date "2019.01.01"]
[Round "1"]
[White "ahmadzada13"]
[Black "ama18"]
[Result "1-0"]
[WhiteElo "2842"]
[BlackElo "2437"]
[TimeControl "180+2"]
[EndTime "13:09:41 PST"]
[Termination "ahmadzada13 won by checkmate"]

1. e4 {[%clk 0:03:01.6]} 1... c5 {[%clk 0:03:00.4]} 2. Nf3 {[%clk 0:03:01.8]}
2... d6 {[%clk 0:03:01.6]} 3. d4 {[%clk 0:03:00.1]} 3... cxd4 {[%clk 0:03:03.5]}
4. Nxd4 {[%clk 0:03:00.5]} 4... Nf6 {[%clk 0:03:04]} 5. Nc3 {[%clk 0:03:01]}
5... a6 {[%clk 0:03:05.4]} 6. Bc4 {[%clk 0:03:01.8]} 6... e6 {[%clk 0:02:56.7]}
7. Bb3 {[%clk 0:03:02.8]} 7... b5 {[%clk 0:02:55.7]} 8. O-O {[%clk 0:03:03.3]}
8... Be7 {[%clk 0:02:49.9]} 9. Qf3 {[%clk 0:03:00.7]} 9... Qb6 {[%clk
0:02:40.7]} 10. Be3 {[%clk 0:02:59.8]} 10... Qb7 {[%clk 0:02:36.7]} 11. Qg3
{[%clk 0:02:59.2]} 11... O-O {[%clk 0:02:13.6]} 12. Bh6 {[%clk 0:02:55.9]} 12...
Ne8 {[%clk 0:02:01.7]} 13. Rfe1 {[%clk 0:02:52.4]} 13... Kh8 {[%clk 0:02:00.8]}
14. Bg5 {[%clk 0:02:49.9]} 14... Nf6 {[%clk 0:01:58]} 15. a3 {[%clk 0:02:38.2]}
15... Bd7 {[%clk 0:01:58.2]} 16. Rad1 {[%clk 0:02:27.3]} 16... Nc6 {[%clk
0:01:40.7]} 17. Nf3 {[%clk 0:01:55.7]} 17... Na5 {[%clk 0:01:25.6]} 18. Bxf6
{[%clk 0:01:37.2]} 18... gxf6 {[%clk 0:01:23]} 19. Qh4 {[%clk 0:01:16.6]} 19...
Rg8 {[%clk 0:01:04.1]} 20. Ne2 {[%clk 0:01:12.6]} 20... Nc4 {[%clk 0:01:00.8]}
21. Bxc4 {[%clk 0:00:57.2]} 21... bxc4 {[%clk 0:01:02.7]} 22. Rb1 {[%clk
0:00:55.9]} 22... Rg7 {[%clk 0:00:53.1]} 23. Ng3 {[%clk 0:00:52.9]} 23... Rag8
{[%clk 0:00:52]} 24. b3 {[%clk 0:00:51.6]} 24... cxb3 {[%clk 0:00:42.7]} 25.
cxb3 {[%clk 0:00:51.4]} 25... Bc6 {[%clk 0:00:25.2]} 26. Qh5 {[%clk 0:00:45.2]}
26... Bf8 {[%clk 0:00:22.5]} 27. Nd4 {[%clk 0:00:40.9]} 27... Be8 {[%clk
0:00:20.3]} 28. Qf3 {[%clk 0:00:38.4]} 28... Be7 {[%clk 0:00:20.6]} 29. Rbc1
{[%clk 0:00:37.2]} 29... Bd7 {[%clk 0:00:21.5]} 30. Rc3 {[%clk 0:00:36.9]} 30...
Rc8 {[%clk 0:00:22.4]} 31. Rec1 {[%clk 0:00:37.9]} 31... Rgg8 {[%clk 0:00:23.1]}
32. Qh5 {[%clk 0:00:32.2]} 32... Rxc3 {[%clk 0:00:13.4]} 33. Rxc3 {[%clk
0:00:33.4]} 33... Kg7 {[%clk 0:00:12.8]} 34. Qf3 {[%clk 0:00:28.9]} 34... Rc8
{[%clk 0:00:13.5]} 35. Nh5+ {[%clk 0:00:28.7]} 35... Kh8 {[%clk 0:00:13.4]} 36.
Rxc8+ {[%clk 0:00:26.1]} 36... Qxc8 {[%clk 0:00:15.3]} 37. h3 {[%clk 0:00:21.4]}
37... e5 {[%clk 0:00:16.6]} 38. Nf5 {[%clk 0:00:20]} 38... Bxf5 {[%clk
0:00:17.4]} 39. exf5 {[%clk 0:00:21.7]} 39... Qc1+ {[%clk 0:00:17.8]} 40. Kh2
{[%clk 0:00:22.3]} 40... Qc8 {[%clk 0:00:19.7]} 41. Qg4 {[%clk 0:00:22.7]} 41...
Qg8 {[%clk 0:00:20.6]} 42. Qe4 {[%clk 0:00:23.6]} 42... Qd8 {[%clk 0:00:21]} 43.
Qg4 {[%clk 0:00:23.1]} 43... Qg8 {[%clk 0:00:21.2]} 44. Qc4 {[%clk 0:00:24.6]}
44... Qe8 {[%clk 0:00:16.2]} 45. Ng3 {[%clk 0:00:25]} 45... Kg8 {[%clk 0:00:16]}
46. Ne4 {[%clk 0:00:26.1]} 46... Qd7 {[%clk 0:00:16.8]} 47. Qd5 {[%clk
0:00:26.4]} 47... Qxf5 {[%clk 0:00:17.2]} 48. g3 {[%clk 0:00:18.9]} 48... Qe6
{[%clk 0:00:15.6]} 49. Qa8+ {[%clk 0:00:18.5]} 49... Kg7 {[%clk 0:00:16.9]} 50.
Qxa6 {[%clk 0:00:19]} 50... Qxb3 {[%clk 0:00:18]} 51. Nxd6 {[%clk 0:00:19.9]}
51... Qb2 {[%clk 0:00:17.4]} 52. Nf5+ {[%clk 0:00:20.8]} 52... Kg6 {[%clk
0:00:10.6]} 53. Nxe7+ {[%clk 0:00:21.7]} 53... Kh6 {[%clk 0:00:12.2]} 54. Qxf6+
{[%clk 0:00:22]} 54... Kh5 {[%clk 0:00:12.7]} 55. g4# {[%clk 0:00:22.7]} 1-0

[Event "*** Titled Tuesday Blitz"]
[Site "Chess.com"]
[Date "2019.01.01"]
[Round "1"]
[White "Justinz"]
[Black "Vuk2000"]
[Result "0-1"]
[WhiteElo "2376"]
[BlackElo "2737"]
[TimeControl "180+2"]
[EndTime "13:09:41 PST"]
[Termination "Vuk2000 won by resignation"]

1. d4 {[%clk 0:02:18.3]} 1... e6 {[%clk 0:03:00.9]} 2. c4 {[%clk 0:02:19.6]}
2... Nf6 {[%clk 0:03:01.3]} 3. Nc3 {[%clk 0:02:21]} 3... Bb4 {[%clk 0:03:02.1]}
4. Qc2 {[%clk 0:02:22.3]} 4... O-O {[%clk 0:03:02.3]} 5. a3 {[%clk 0:02:23]}
5... Bxc3+ {[%clk 0:03:03.1]} 6. Qxc3 {[%clk 0:02:23.6]} 6... Ne4 {[%clk
0:03:04.6]} 7. Qc2 {[%clk 0:02:23.7]} 7... f5 {[%clk 0:03:05.9]} 8. Nf3 {[%clk
0:02:20.8]} 8... b6 {[%clk 0:03:06.1]} 9. Bf4 {[%clk 0:02:21.8]} 9... Bb7 {[%clk
0:03:06.9]} 10. e3 {[%clk 0:02:23.1]} 10... d6 {[%clk 0:03:04]} 11. Bd3 {[%clk
0:02:23]} 11... Nd7 {[%clk 0:03:04.8]} 12. O-O {[%clk 0:02:23.5]} 12... Qe7
{[%clk 0:03:04.1]} 13. Rad1 {[%clk 0:02:15.9]} 13... a5 {[%clk 0:03:00.1]} 14.
h3 {[%clk 0:02:08.5]} 14... e5 {[%clk 0:02:54.7]} 15. Bh2 {[%clk 0:01:58.6]}
15... Rad8 {[%clk 0:02:42.1]} 16. d5 {[%clk 0:01:32.8]} 16... Ndc5 {[%clk
0:02:34]} 17. Be2 {[%clk 0:01:32]} 17... a4 {[%clk 0:02:30.5]} 18. Nd2 {[%clk
0:01:32.5]} 18... Nxd2 {[%clk 0:02:17.9]} 19. Rxd2 {[%clk 0:01:34.4]} 19... g5
{[%clk 0:02:13]} 20. Re1 {[%clk 0:01:18.5]} 20... Qf7 {[%clk 0:01:55.5]} 21. f4
{[%clk 0:01:06.6]} 21... gxf4 {[%clk 0:01:41.1]} 22. exf4 {[%clk 0:01:08.5]}
22... e4 {[%clk 0:01:42.3]} 23. Kh1 {[%clk 0:01:09.4]} 23... Kh8 {[%clk
0:01:30.2]} 24. g4 {[%clk 0:01:09.1]} 24... Rde8 {[%clk 0:01:29.2]} 25. Rg1
{[%clk 0:00:59.3]} 25... e3 {[%clk 0:01:18.9]} 26. Rd4 {[%clk 0:00:36.7]} 26...
Ne4 {[%clk 0:01:13.8]} 27. Bg3 {[%clk 0:00:30.6]} 27... Qf6 {[%clk 0:01:07.7]}
28. Qd3 {[%clk 0:00:30.7]} 28... Nf2+ {[%clk 0:00:53]} 29. Bxf2 {[%clk
0:00:29.1]} 29... exf2 {[%clk 0:00:54.9]} 30. Rd1 {[%clk 0:00:30.1]} 30... Qh4
{[%clk 0:00:52]} 31. Kg2 {[%clk 0:00:29]} 31... Re7 {[%clk 0:00:51]} 32. Bf3
{[%clk 0:00:24.6]} 32... Rfe8 {[%clk 0:00:48.3]} 33. Qc3 {[%clk 0:00:24.6]}
33... Kg8 {[%clk 0:00:42.5]} 34. R4d2 {[%clk 0:00:23.8]} 34... fxg4 {[%clk
0:00:39.6]} 35. hxg4 {[%clk 0:00:21.6]} 35... Bc8 {[%clk 0:00:36.8]} 36. f5
{[%clk 0:00:20.6]} 36... Bxf5 {[%clk 0:00:27.3]} 37. Rxf2 {[%clk 0:00:19.3]}
37... Bxg4 {[%clk 0:00:24.8]} 38. Bxg4 {[%clk 0:00:19.8]} 38... Qxg4+ {[%clk
0:00:26.7]} 39. Qg3 {[%clk 0:00:20.4]} 39... Qxg3+ {[%clk 0:00:27.5]} 40. Kxg3
{[%clk 0:00:21.8]} 40... Re3+ {[%clk 0:00:25.7]} 41. Kh2 {[%clk 0:00:22.8]}
41... Re2 {[%clk 0:00:25.6]} 42. Rd2 {[%clk 0:00:24]} 42... Rxd2 {[%clk
0:00:26.3]} 43. Rxd2 {[%clk 0:00:24.8]} 43... Re4 {[%clk 0:00:27.7]} 44. Rc2
{[%clk 0:00:26]} 44... Kf7 {[%clk 0:00:27.3]} 45. Kg3 {[%clk 0:00:27.9]} 45...
Kf6 {[%clk 0:00:26]} 46. Kf3 {[%clk 0:00:29.4]} 46... Ke5 {[%clk 0:00:27.1]} 47.
Rc3 {[%clk 0:00:28.5]} 47... h5 {[%clk 0:00:27.3]} 48. Kg3 {[%clk 0:00:28.9]}
48... Rg4+ {[%clk 0:00:28.2]} 49. Kf3 {[%clk 0:00:30]} 49... Kd4 {[%clk
0:00:29.4]} 50. Rc1 {[%clk 0:00:30.7]} 50... Kc5 {[%clk 0:00:29.5]} 51. Rh1
{[%clk 0:00:27.8]} 51... Rxc4 {[%clk 0:00:26.8]} 52. Rxh5 {[%clk 0:00:29.4]}
52... Rc2 {[%clk 0:00:27.2]} 53. Rh7 {[%clk 0:00:30.4]} 53... Kxd5 {[%clk
0:00:27.8]} 54. Ke3 {[%clk 0:00:30.1]} 54... c5 {[%clk 0:00:26.5]} 55. Ra7
{[%clk 0:00:25.5]} 55... b5 {[%clk 0:00:25.4]} 56. Rb7 {[%clk 0:00:22.5]} 56...
Rxb2 {[%clk 0:00:25.8]} 57. Kd3 {[%clk 0:00:23.7]} 57... Rb3+ {[%clk 0:00:26.6]}
58. Kc2 {[%clk 0:00:25.3]} 58... Kc6 {[%clk 0:00:27.5]} 59. Rb8 {[%clk 0:00:26]}
59... Rxa3 {[%clk 0:00:28.5]} 0-1

[Event "*** Titled Tuesday Blitz"]
[Site "Chess.com"]
[Date "2019.01.01"]
[Round "1"]
[White "Gr3egor"]
[Black "aa175"]
[Result "0-1"]
[WhiteElo "2474"]
[BlackElo "1924"]
[TimeControl "180+2"]
[EndTime "13:09:41 PST"]
[Termination "aa175 won by resignation"]

1. d4 {[%clk 0:03:00.5]} 1... Nf6 {[%clk 0:02:56.2]} 2. c4 {[%clk 0:02:59.2]}
2... g6 {[%clk 0:02:55.8]} 3. Nc3 {[%clk 0:02:59.1]} 3... d5 {[%clk 0:02:56.9]}
4. cxd5 {[%clk 0:02:59.5]} 4... Nxd5 {[%clk 0:02:57.9]} 5. e4 {[%clk 0:03:01.1]}
5... Nxc3 {[%clk 0:02:59]} 6. bxc3 {[%clk 0:03:03]} 6... Bg7 {[%clk 0:03:00.1]}
7. Nf3 {[%clk 0:03:03.6]} 7... O-O {[%clk 0:03:00.6]} 8. Be2 {[%clk 0:03:04.5]}
8... c5 {[%clk 0:03:01.3]} 9. Rb1 {[%clk 0:02:58.4]} 9... Nc6 {[%clk 0:03:02.3]}
10. d5 {[%clk 0:02:59.2]} 10... Na5 {[%clk 0:02:30.7]} 11. c4 {[%clk 0:02:47.4]}
11... b6 {[%clk 0:02:28.7]} 12. Bb2 {[%clk 0:02:47.2]} 12... Nb7 {[%clk
0:02:27.4]} 13. Bxg7 {[%clk 0:02:40.6]} 13... Kxg7 {[%clk 0:02:26.4]} 14. h4
{[%clk 0:02:42.2]} 14... h5 {[%clk 0:02:25.2]} 15. Ng5 {[%clk 0:02:35.3]} 15...
f6 {[%clk 0:02:24.9]} 16. Nh3 {[%clk 0:02:34.8]} 16... Nd6 {[%clk 0:02:24]} 17.
f3 {[%clk 0:02:20.3]} 17... e5 {[%clk 0:02:18.6]} 18. dxe6 {[%clk 0:02:09.8]}
18... Bxe6 {[%clk 0:02:17.9]} 19. Nf4 {[%clk 0:02:11.3]} 19... Bf7 {[%clk
0:02:09.5]} 20. Qc2 {[%clk 0:02:03.5]} 20... Qe7 {[%clk 0:02:07.3]} 21. Rd1
{[%clk 0:01:57.7]} 21... Qe5 {[%clk 0:02:00.5]} 22. Nh3 {[%clk 0:01:57.9]} 22...
Rad8 {[%clk 0:01:56.4]} 23. O-O {[%clk 0:01:48.4]} 23... Qg3 {[%clk 0:01:50.3]}
24. Rd2 {[%clk 0:01:40]} 24... Qxh4 {[%clk 0:01:47.9]} 25. Rfd1 {[%clk
0:01:38.4]} 25... Qg3 {[%clk 0:01:45.8]} 26. Qa4 {[%clk 0:01:33.8]} 26... Nb7
{[%clk 0:01:26.3]} 27. Nf2 {[%clk 0:01:14.6]} 27... Rxd2 {[%clk 0:01:14.6]} 28.
Rxd2 {[%clk 0:01:16.5]} 28... Qf4 {[%clk 0:01:15.5]} 29. Rd7 {[%clk 0:01:12]}
29... Na5 {[%clk 0:01:07.6]} 30. Rxa7 {[%clk 0:01:08.5]} 30... Qc1+ {[%clk
0:01:05.4]} 31. Bf1 {[%clk 0:01:07.6]} 31... Kg8 {[%clk 0:00:55.3]} 32. Qd1
{[%clk 0:00:38.4]} 32... Qxd1 {[%clk 0:00:50.6]} 33. Nxd1 {[%clk 0:00:40.3]}
33... Bxc4 {[%clk 0:00:45.2]} 34. Bxc4+ {[%clk 0:00:40.4]} 34... Nxc4 {[%clk
0:00:47.1]} 35. Nc3 {[%clk 0:00:42]} 35... f5 {[%clk 0:00:38.7]} 36. Nd5 {[%clk
0:00:41]} 36... fxe4 {[%clk 0:00:38.1]} 37. fxe4 {[%clk 0:00:42.9]} 37... Rf7
{[%clk 0:00:37.5]} 38. Ra8+ {[%clk 0:00:41.6]} 38... Kg7 {[%clk 0:00:38.4]} 39.
Rb8 {[%clk 0:00:21.5]} 39... Nd2 {[%clk 0:00:26.9]} 40. Rxb6 {[%clk 0:00:19.8]}
40... Nxe4 {[%clk 0:00:26.5]} 41. Re6 {[%clk 0:00:19.4]} 41... Ng3 {[%clk
0:00:22.4]} 42. Rc6 {[%clk 0:00:17.9]} 42... Ne4 {[%clk 0:00:17.9]} 43. Re6
{[%clk 0:00:17.8]} 43... Nd2 {[%clk 0:00:17.5]} 44. Re2 {[%clk 0:00:18.7]} 44...
Nb1 {[%clk 0:00:15.4]} 45. Rc2 {[%clk 0:00:16.6]} 45... Ra7 {[%clk 0:00:09.5]}
46. Nf4 {[%clk 0:00:14.1]} 46... Kh6 {[%clk 0:00:06.6]} 47. g3 {[%clk
0:00:11.6]} 47... Ra3 {[%clk 0:00:06.1]} 48. Kg2 {[%clk 0:00:12.7]} 48... Nc3
{[%clk 0:00:05.6]} 49. Rc1 {[%clk 0:00:11.1]} 49... Rxa2+ {[%clk 0:00:06.1]} 50.
Kf3 {[%clk 0:00:12.6]} 50... Ra3 {[%clk 0:00:06.7]} 51. Kg2 {[%clk 0:00:12.6]}
51... Ne4 {[%clk 0:00:06.9]} 52. Ne2 {[%clk 0:00:14.1]} 52... Re3 {[%clk
0:00:07.4]} 53. Rc2 {[%clk 0:00:15.7]} 53... c4 {[%clk 0:00:07.4]} 54. Rxc4
{[%clk 0:00:13.8]} 54... Rxe2+ {[%clk 0:00:08.2]} 55. Kf3 {[%clk 0:00:15.4]}
55... Nd2+ {[%clk 0:00:09]} 0-1

[Event "*** Titled Tuesday Blitz"]
[Site "Chess.com"]
[Date "2019.01.01"]
[Round "1"]
[White "Berardino"]
[Black "Keranke"]
[Result "0-1"]
[WhiteElo "2397"]
[BlackElo "2753"]
[TimeControl "180+2"]
[EndTime "13:09:44 PST"]
[Termination "Keranke won by resignation"]

1. e4 {[%clk 0:03:01.9]} 1... g6 {[%clk 0:02:54.5]} 2. d4 {[%clk 0:02:52.9]}
2... Bg7 {[%clk 0:02:54.2]} 3. Nc3 {[%clk 0:02:40.6]} 3... d6 {[%clk 0:02:55.5]}
4. f4 {[%clk 0:02:37.2]} 4... a6 {[%clk 0:02:56.5]} 5. Nf3 {[%clk 0:02:36.3]}
5... b5 {[%clk 0:02:57.7]} 6. Bd3 {[%clk 0:02:36.5]} 6... Nd7 {[%clk 0:02:59.2]}
7. O-O {[%clk 0:02:37.1]} 7... c5 {[%clk 0:03:00.7]} 8. Be3 {[%clk 0:02:37.3]}
8... Bb7 {[%clk 0:02:59.9]} 9. Kh1 {[%clk 0:02:33.4]} 9... c4 {[%clk 0:02:48.7]}
10. Be2 {[%clk 0:02:33.7]} 10... b4 {[%clk 0:02:50.1]} 11. Nd5 {[%clk 0:02:34]}
11... Bxd5 {[%clk 0:02:51.1]} 12. exd5 {[%clk 0:02:35.1]} 12... Nb6 {[%clk
0:02:52.7]} 13. Nd2 {[%clk 0:02:10.6]} 13... c3 {[%clk 0:02:41.4]} 14. bxc3
{[%clk 0:02:10.9]} 14... Nxd5 {[%clk 0:02:42.5]} 15. Nc4 {[%clk 0:01:58.8]}
15... Nxc3 {[%clk 0:02:36.8]} 16. Qd3 {[%clk 0:01:59.8]} 16... Nxe2 {[%clk
0:02:34.1]} 17. Qxe2 {[%clk 0:02:01.7]} 17... Nf6 {[%clk 0:02:33.5]} 18. a3
{[%clk 0:01:54.9]} 18... bxa3 {[%clk 0:02:20.1]} 19. Rxa3 {[%clk 0:01:56.8]}
19... O-O {[%clk 0:02:20.6]} 20. Rfa1 {[%clk 0:01:57.3]} 20... Nd5 {[%clk
0:02:08.1]} 21. Rxa6 {[%clk 0:01:54.1]} 21... Rxa6 {[%clk 0:02:08.2]} 22. Rxa6
{[%clk 0:01:56]} 22... Qc8 {[%clk 0:01:57.8]} 23. Ra7 {[%clk 0:01:36.6]} 23...
Qe6 {[%clk 0:01:52.6]} 24. Qd2 {[%clk 0:01:28.5]} 24... Rc8 {[%clk 0:01:48.7]}
25. Ra4 {[%clk 0:01:14.8]} 25... Rxc4 {[%clk 0:01:37.8]} 26. Rxc4 {[%clk
0:01:16.7]} 26... Qxe3 {[%clk 0:01:39.1]} 27. Rc8+ {[%clk 0:01:16.4]} 27... Bf8
{[%clk 0:01:40.2]} 28. Qxe3 {[%clk 0:01:12.1]} 28... Nxe3 {[%clk 0:01:42.1]} 29.
c4 {[%clk 0:01:12.2]} 29... Nf5 {[%clk 0:00:46.1]} 30. c5 {[%clk 0:01:06]} 30...
Nxd4 {[%clk 0:00:46.2]} 31. c6 {[%clk 0:01:07.1]} 31... Nxc6 {[%clk 0:00:44]}
32. Rxc6 {[%clk 0:01:09]} 32... Kg7 {[%clk 0:00:43.5]} 33. g3 {[%clk 0:01:07.2]}
33... Kf6 {[%clk 0:00:44]} 34. Kg2 {[%clk 0:01:09.1]} 34... h5 {[%clk
0:00:44.5]} 35. Kf3 {[%clk 0:01:09.7]} 35... Ke6 {[%clk 0:00:45.9]} 36. h3
{[%clk 0:01:08.4]} 36... Bg7 {[%clk 0:00:46.9]} 37. g4 {[%clk 0:01:08.9]} 37...
hxg4+ {[%clk 0:00:48.7]} 38. hxg4 {[%clk 0:01:10.7]} 38... Bd4 {[%clk 0:00:50]}
39. Ke4 {[%clk 0:01:06.7]} 39... Bc5 {[%clk 0:00:49.6]} 40. f5+ {[%clk
0:01:04.7]} 40... Kf6 {[%clk 0:00:50.9]} 41. Rc7 {[%clk 0:00:56.1]} 41... e6
{[%clk 0:00:34.8]} 42. fxe6 {[%clk 0:00:34.9]} 42... fxe6 {[%clk 0:00:36.7]} 43.
Kf4 {[%clk 0:00:30.1]} 43... g5+ {[%clk 0:00:31.4]} 44. Kf3 {[%clk 0:00:29]}
44... Bb4 {[%clk 0:00:29]} 45. Rb7 {[%clk 0:00:29]} 45... Bd2 {[%clk 0:00:26.2]}
46. Ra7 {[%clk 0:00:27.2]} 46... Ke5 {[%clk 0:00:26]} 47. Rd7 {[%clk 0:00:25]}
47... d5 {[%clk 0:00:26.1]} 48. Re7 {[%clk 0:00:22.3]} 48... Kd6 {[%clk
0:00:23.3]} 49. Re8 {[%clk 0:00:23.7]} 49... e5 {[%clk 0:00:24.3]} 50. Ke2
{[%clk 0:00:19.7]} 50... Bc1 {[%clk 0:00:24.9]} 51. Rg8 {[%clk 0:00:17.5]} 51...
e4 {[%clk 0:00:23.3]} 52. Rc8 {[%clk 0:00:16.7]} 52... Bf4 {[%clk 0:00:23.7]}
53. Rf8 {[%clk 0:00:17.6]} 53... d4 {[%clk 0:00:21.5]} 54. Re8 {[%clk
0:00:18.1]} 54... d3+ {[%clk 0:00:22.3]} 55. Kf2 {[%clk 0:00:16.5]} 55... Kd5
{[%clk 0:00:23.9]} 56. Rd8+ {[%clk 0:00:17.3]} 56... Kc4 {[%clk 0:00:25]} 57.
Rc8+ {[%clk 0:00:18.5]} 57... Kd4 {[%clk 0:00:26.6]} 58. Rd8+ {[%clk 0:00:19.7]}
58... Kc3 {[%clk 0:00:28.2]} 59. Rc8+ {[%clk 0:00:21.3]} 59... Kd2 {[%clk
0:00:29.6]} 0-1